[Event "Titled Tuesday Blitz May 23 Early 2023"]
[White "brm72"]
[Black "Karthik Rajaa"]
[BlackFideId "25035215"]
[WhiteElo "2614"]
[BlackElo "2215"]
[Result "0-1"]
[Round "10"]
[TimeControl "180+2"]
[Date "2023.05.23"]
[WhiteClock "0:00:51"]
[BlackClock "0:00:59"]

1. d4 {[%clk 0:03:00]}  Nf6 {[%clk 0:02:59]} 2. c4 {[%clk 0:03:01]}  g6 {[%clk 0:02:59]} 3. Nc3 {[%clk 0:03:00]}  Bg7 {[%clk 0:02:59]} 4. e4 {[%clk 0:03:00]}  d6 {[%clk 0:03:00]} 5. Nf3 {[%clk 0:03:00]}  O-O {[%clk 0:03:00]} 6. Be2 {[%clk 0:03:00]}  Nbd7 {[%clk 0:03:01]} 7. O-O {[%clk 0:02:56]}  e5 {[%clk 0:03:01]} 8. Be3 {[%clk 0:02:53]}  Qe7 {[%clk 0:03:00]} 9. Qc2 {[%clk 0:02:46]}  c6 {[%clk 0:03:00]} 10. h3 {[%clk 0:02:46]}  Re8 {[%clk 0:02:57]} 11. Rad1 {[%clk 0:02:35]}  exd4 {[%clk 0:02:56]} 12. Nxd4 {[%clk 0:02:35]}  Nxe4 {[%clk 0:02:50]} 13. Nxe4 {[%clk 0:02:22]}  Qxe4 {[%clk 0:02:51]} 14. Bd3 {[%clk 0:02:17]}  Qh4 {[%clk 0:02:47]} 15. Nf3 {[%clk 0:02:17]}  Qd8 {[%clk 0:02:44]} 16. Rfe1 {[%clk 0:02:09]}  Qc7 {[%clk 0:02:14]} 17. Bf4 {[%clk 0:02:05]}  Ne5 {[%clk 0:02:05]} 18. Nxe5 {[%clk 0:02:01]}  dxe5 {[%clk 0:02:04]} 19. Bh2 {[%clk 0:01:55]}  Be6 {[%clk 0:02:04]} 20. b3 {[%clk 0:01:53]}  Rad8 {[%clk 0:01:57]} 21. Qe2 {[%clk 0:01:46]}  f6 {[%clk 0:01:51]} 22. Bc2 {[%clk 0:01:35]}  Bf7 {[%clk 0:01:42]} 23. h4 {[%clk 0:01:26]}  Rxd1 {[%clk 0:01:40]} 24. Rxd1 {[%clk 0:01:26]}  Rd8 {[%clk 0:01:40]} 25. Rxd8+ {[%clk 0:01:19]}  Qxd8 {[%clk 0:01:41]} 26. f4 {[%clk 0:01:19]}  Qd4+ {[%clk 0:01:37]} 27. Kh1 {[%clk 0:01:15]}  exf4 {[%clk 0:01:33]} 28. Qd3 {[%clk 0:01:06]}  Qxd3 {[%clk 0:01:28]} 29. Bxd3 {[%clk 0:01:07]}  g5 {[%clk 0:01:29]} 30. Kg1 {[%clk 0:01:05]}  Bf8 {[%clk 0:01:27]} 31. Kf2 {[%clk 0:01:05]}  Bc5+ {[%clk 0:01:27]} 32. Kf3 {[%clk 0:01:05]}  Bh5+ {[%clk 0:01:24]} 33. g4 {[%clk 0:01:05]}  fxg3+ {[%clk 0:01:22]} 34. Kxg3 {[%clk 0:01:06]}  Bd6+ {[%clk 0:01:23]} 35. Kg2 {[%clk 0:01:06]}  Bxh2 {[%clk 0:01:23]} 36. Kxh2 {[%clk 0:01:07]}  Bg6 {[%clk 0:01:19]} 37. Be2 {[%clk 0:01:02]}  h5 {[%clk 0:01:07]} 38. Kg3 {[%clk 0:01:01]}  Kf7 {[%clk 0:01:07]} 39. Kf3 {[%clk 0:00:58]}  Ke6 {[%clk 0:01:05]} 40. Ke3 {[%clk 0:00:58]}  Ke5 {[%clk 0:01:01]} 41. b4 {[%clk 0:00:57]}  g4 {[%clk 0:00:59]} 42. a4 {[%clk 0:00:51]}  f5 {[%clk 0:00:59]} 0-1


[Site "https://www.chess.com"]

[Event "Titled Tuesday Blitz May 23 Early 2023"]
[White "Nazari, Arad"]
[Black "Fiorito, Joaquin"]
[WhiteFideId "12577324"]
[BlackFideId "180173"]
[WhiteElo "2175"]
[BlackElo "2157"]
[Result "1-0"]
[Round "10"]
[TimeControl "180+2"]
[Date "2023.05.23"]
[WhiteClock "0:00:05"]
[BlackClock "0:00:05"]

1. e4 {[%clk 0:03:00]}  c6 {[%clk 0:02:58]} 2. Nf3 {[%clk 0:03:00]}  d5 {[%clk 0:02:59]} 3. Nc3 {[%clk 0:03:01]}  Bg4 {[%clk 0:02:58]} 4. h3 {[%clk 0:03:01]}  Bxf3 {[%clk 0:02:58]} 5. Qxf3 {[%clk 0:03:02]}  e6 {[%clk 0:02:58]} 6. Be2 {[%clk 0:03:02]}  Nd7 {[%clk 0:02:53]} 7. O-O {[%clk 0:03:01]}  g6 {[%clk 0:02:54]} 8. d4 {[%clk 0:02:55]}  Bg7 {[%clk 0:02:54]} 9. Rd1 {[%clk 0:02:41]}  Ne7 {[%clk 0:02:53]} 10. Qg3 {[%clk 0:02:36]}  O-O {[%clk 0:02:50]} 11. Bg5 {[%clk 0:02:32]}  dxe4 {[%clk 0:02:00]} 12. Nxe4 {[%clk 0:02:28]}  Nf5 {[%clk 0:01:58]} 13. Qb3 {[%clk 0:02:16]}  Qb6 {[%clk 0:01:58]} 14. c3 {[%clk 0:02:10]}  h6 {[%clk 0:01:35]} 15. Bf4 {[%clk 0:02:05]}  e5 {[%clk 0:01:32]} 16. dxe5 {[%clk 0:02:00]}  Nxe5 {[%clk 0:01:33]} 17. Nd6 {[%clk 0:01:51]}  Nxd6 {[%clk 0:01:28]} 18. Rxd6 {[%clk 0:01:52]}  Rfe8 {[%clk 0:01:25]} 19. Bxe5 {[%clk 0:01:21]}  Rxe5 {[%clk 0:01:25]} 20. Bc4 {[%clk 0:01:19]}  Rf5 {[%clk 0:01:24]} 21. Qxb6 {[%clk 0:01:13]}  axb6 {[%clk 0:01:25]} 22. Rxg6 {[%clk 0:01:14]}  b5 {[%clk 0:01:23]} 23. Bb3 {[%clk 0:01:13]}  b4 {[%clk 0:01:24]} 24. cxb4 {[%clk 0:01:05]}  Kf8 {[%clk 0:01:24]} 25. Rg4 {[%clk 0:01:02]}  Bxb2 {[%clk 0:01:24]} 26. Rd1 {[%clk 0:01:01]}  h5 {[%clk 0:01:15]} 27. Re4 {[%clk 0:00:57]}  Re8 {[%clk 0:01:13]} 28. Rxe8+ {[%clk 0:00:50]}  Kxe8 {[%clk 0:01:14]} 29. Re1+ {[%clk 0:00:36]}  Kd8 {[%clk 0:01:13]} 30. Re4 {[%clk 0:00:36]}  Bc3 {[%clk 0:01:07]} 31. g4 {[%clk 0:00:32]}  hxg4 {[%clk 0:01:07]} 32. hxg4 {[%clk 0:00:33]}  Rf6 {[%clk 0:01:00]} 33. f4 {[%clk 0:00:26]}  Kc7 {[%clk 0:00:58]} 34. f5 {[%clk 0:00:23]}  Kd6 {[%clk 0:00:49]} 35. Kg2 {[%clk 0:00:22]}  Be5 {[%clk 0:00:34]} 36. Re2 {[%clk 0:00:15]}  Bc3 {[%clk 0:00:27]} 37. Re4 {[%clk 0:00:15]}  Be5 {[%clk 0:00:27]} 38. Re3 {[%clk 0:00:16]}  Bd4 {[%clk 0:00:25]} 39. Re8 {[%clk 0:00:16]}  Bc3 {[%clk 0:00:25]} 40. b5 {[%clk 0:00:14]}  cxb5 {[%clk 0:00:25]} 41. Kf3 {[%clk 0:00:15]}  b4 {[%clk 0:00:11]} 42. Rb8 {[%clk 0:00:14]}  Kc7 {[%clk 0:00:07]} 43. Rf8 {[%clk 0:00:14]}  Kd6 {[%clk 0:00:06]} 44. Rxf7 {[%clk 0:00:10]}  Rxf7 {[%clk 0:00:06]} 45. Bxf7 {[%clk 0:00:11]}  Ke7 {[%clk 0:00:07]} 46. Bd5 {[%clk 0:00:11]}  Kf6 {[%clk 0:00:07]} 47. Bxb7 {[%clk 0:00:11]}  Bd2 {[%clk 0:00:07]} 48. Bd5 {[%clk 0:00:11]}  Kg5 {[%clk 0:00:07]} 49. Bb3 {[%clk 0:00:10]}  Kf6 {[%clk 0:00:08]} 50. Bd1 {[%clk 0:00:10]}  Kg5 {[%clk 0:00:08]} 51. Ke4 {[%clk 0:00:11]}  Kf6 {[%clk 0:00:09]} 52. Kd5 {[%clk 0:00:11]}  Be1 {[%clk 0:00:09]} 53. Kc4 {[%clk 0:00:11]}  Bd2 {[%clk 0:00:09]} 54. Be2 {[%clk 0:00:11]}  Be1 {[%clk 0:00:09]} 55. Kd3 {[%clk 0:00:11]}  Kg5 {[%clk 0:00:08]} 56. Ke3 {[%clk 0:00:10]}  Kf6 {[%clk 0:00:09]} 57. Kf4 {[%clk 0:00:10]}  Bd2+ {[%clk 0:00:09]} 58. Kg3 {[%clk 0:00:10]}  Be1+ {[%clk 0:00:09]} 59. Kh3 {[%clk 0:00:10]}  Kg5 {[%clk 0:00:09]} 60. Bc4 {[%clk 0:00:08]}  Bd2 {[%clk 0:00:09]} 61. Kg2 {[%clk 0:00:09]}  Kf6 {[%clk 0:00:09]} 62. Kf1 {[%clk 0:00:09]}  Kg5 {[%clk 0:00:08]} 63. Ke2 {[%clk 0:00:09]}  Bc3 {[%clk 0:00:09]} 64. Kd3 {[%clk 0:00:09]}  Kf6 {[%clk 0:00:09]} 65. a4 {[%clk 0:00:08]}  Be1 {[%clk 0:00:05]} 66. Ke2 {[%clk 0:00:07]}  Bc3 {[%clk 0:00:05]} 67. a5 {[%clk 0:00:07]}  b3 {[%clk 0:00:06]} 68. a6 {[%clk 0:00:06]}  b2 {[%clk 0:00:06]} 69. Bd3 {[%clk 0:00:07]}  Bd4 {[%clk 0:00:07]} 70. Kf3 {[%clk 0:00:06]}  Kg5 {[%clk 0:00:07]} 71. Ke4 {[%clk 0:00:06]}  Ba7 {[%clk 0:00:08]} 72. Kd5 {[%clk 0:00:05]}  Kf4 {[%clk 0:00:05]} 73. f6 {[%clk 0:00:05]} 1-0


[Site "https://www.chess.com"]

[Event "Titled Tuesday Blitz May 23 Early 2023"]
[White "Weetik, Vjacheslav"]
[Black "Bagwe Gaurang"]
[WhiteFideId "4153472"]
[BlackFideId "45039895"]
[WhiteElo "2469"]
[BlackElo "1847"]
[Result "1-0"]
[Round "10"]
[TimeControl "180+2"]
[Date "2023.05.23"]
[WhiteClock "0:00:13"]
[BlackClock "0:00:00"]

1. d4 {[%clk 0:02:59]}  d5 {[%clk 0:02:58]} 2. Bf4 {[%clk 0:02:58]}  Nf6 {[%clk 0:02:57]} 3. e3 {[%clk 0:02:58]}  c5 {[%clk 0:02:57]} 4. c3 {[%clk 0:02:59]}  e6 {[%clk 0:02:57]} 5. Nd2 {[%clk 0:02:59]}  Bd6 {[%clk 0:02:58]} 6. Bxd6 {[%clk 0:02:59]}  Qxd6 {[%clk 0:02:59]} 7. Bd3 {[%clk 0:02:59]}  O-O {[%clk 0:02:58]} 8. Rc1 {[%clk 0:02:59]}  Nbd7 {[%clk 0:02:58]} 9. f4 {[%clk 0:02:52]}  c4 {[%clk 0:02:40]} 10. Bb1 {[%clk 0:02:52]}  b5 {[%clk 0:02:41]} 11. Ngf3 {[%clk 0:02:44]}  b4 {[%clk 0:02:41]} 12. Ne5 {[%clk 0:02:40]}  bxc3 {[%clk 0:02:40]} 13. bxc3 {[%clk 0:02:38]}  Rb8 {[%clk 0:02:38]} 14. O-O {[%clk 0:02:38]}  g6 {[%clk 0:01:48]} 15. Qe1 {[%clk 0:02:32]}  Nh5 {[%clk 0:01:43]} 16. g4 {[%clk 0:02:26]}  Ng7 {[%clk 0:01:42]} 17. Qh4 {[%clk 0:02:18]}  Rb2 {[%clk 0:01:32]} 18. Ndf3 {[%clk 0:02:03]}  f6 {[%clk 0:01:18]} 19. Nxg6 {[%clk 0:01:45]}  Rxb1 {[%clk 0:01:18]} 20. Nxf8 {[%clk 0:01:42]}  Rxc1 {[%clk 0:01:16]} 21. Qxh7+ {[%clk 0:01:41]}  Kxf8 {[%clk 0:01:14]} 22. Rxc1 {[%clk 0:01:41]}  Kf7 {[%clk 0:00:40]} 23. g5 {[%clk 0:01:36]}  Nf8 {[%clk 0:00:40]} 24. Qh6 {[%clk 0:01:33]}  fxg5 {[%clk 0:00:13]} 25. Ne5+ {[%clk 0:01:20]}  Kg8 {[%clk 0:00:12]} 26. Qxg5 {[%clk 0:01:17]}  Nh7 {[%clk 0:00:08]} 27. Qg6 {[%clk 0:01:03]}  Qf8 {[%clk 0:00:04]} 28. Rb1 {[%clk 0:01:00]}  Nf6 {[%clk 0:00:03]} 29. Rb8 {[%clk 0:00:58]}  Nh5 {[%clk 0:00:01]} 30. Ng4 {[%clk 0:00:49]}  a5 {[%clk 0:00:02]} 31. a4 {[%clk 0:00:48]}  Kh8 {[%clk 0:00:02]} 32. Ne5 {[%clk 0:00:45]}  Kg8 {[%clk 0:00:02]} 33. Kf2 {[%clk 0:00:40]}  Kh8 {[%clk 0:00:02]} 34. Ke2 {[%clk 0:00:38]}  Kg8 {[%clk 0:00:02]} 35. Kd2 {[%clk 0:00:36]}  Kh8 {[%clk 0:00:02]} 36. Qh6+ {[%clk 0:00:34]}  Kg8 {[%clk 0:00:03]} 37. Ng6 {[%clk 0:00:35]}  Qd8 {[%clk 0:00:02]} 38. Qh8+ {[%clk 0:00:35]}  Kf7 {[%clk 0:00:02]} 39. Qxd8 {[%clk 0:00:34]}  Kxg6 {[%clk 0:00:03]} 40. Rxc8 {[%clk 0:00:34]}  Nf6 {[%clk 0:00:02]} 41. Rb8 {[%clk 0:00:30]}  Nf5 {[%clk 0:00:02]} 42. Rb1 {[%clk 0:00:26]}  Ne4+ {[%clk 0:00:03]} 43. Kc2 {[%clk 0:00:26]}  Nxe3+ {[%clk 0:00:03]} 44. Kb2 {[%clk 0:00:26]}  Nf2 {[%clk 0:00:02]} 45. Rg1+ {[%clk 0:00:25]}  Kf5 {[%clk 0:00:02]} 46. Qg5+ {[%clk 0:00:24]}  Ke4 {[%clk 0:00:02]} 47. Qe5+ {[%clk 0:00:24]}  Kd3 {[%clk 0:00:03]} 48. Rg3 {[%clk 0:00:20]}  Ne4 {[%clk 0:00:02]} 49. Rxe3+ {[%clk 0:00:19]}  Kxe3 {[%clk 0:00:03]} 50. Qxe6 {[%clk 0:00:18]}  Kd3 {[%clk 0:00:03]} 51. Qxd5 {[%clk 0:00:14]}  Nxc3 {[%clk 0:00:00]} 52. Qf3+ {[%clk 0:00:13]} 1-0


[Site "https://www.chess.com"]

[Event "Titled Tuesday Blitz May 23 Early 2023"]
[White "Gorovets, Andrey"]
[Black "gueraumasague"]
[WhiteFideId "13504037"]
[WhiteElo "2459"]
[BlackElo "2562"]
[Result "1-0"]
[Round "10"]
[TimeControl "180+2"]
[Date "2023.05.23"]
[WhiteClock "0:00:35"]
[BlackClock "0:00:01"]

1. Nf3 {[%clk 0:02:57]}  Nf6 {[%clk 0:02:59]} 2. g3 {[%clk 0:02:58]}  g6 {[%clk 0:02:52]} 3. c4 {[%clk 0:02:57]}  Bg7 {[%clk 0:02:53]} 4. d4 {[%clk 0:02:58]}  d6 {[%clk 0:02:53]} 5. Bg2 {[%clk 0:02:58]}  Bf5 {[%clk 0:02:52]} 6. Nh4 {[%clk 0:02:45]}  Bc8 {[%clk 0:02:44]} 7. Nc3 {[%clk 0:02:44]}  Nc6 {[%clk 0:02:41]} 8. O-O {[%clk 0:02:42]}  O-O {[%clk 0:02:40]} 9. Nf3 {[%clk 0:02:42]}  Bf5 {[%clk 0:02:40]} 10. d5 {[%clk 0:02:23]}  Na5 {[%clk 0:02:36]} 11. Nd4 {[%clk 0:02:23]}  Bd7 {[%clk 0:02:33]} 12. b3 {[%clk 0:02:24]}  c5 {[%clk 0:02:31]} 13. Nc2 {[%clk 0:02:24]}  a6 {[%clk 0:02:28]} 14. Rb1 {[%clk 0:02:18]}  b5 {[%clk 0:02:27]} 15. cxb5 {[%clk 0:02:14]}  axb5 {[%clk 0:02:28]} 16. b4 {[%clk 0:02:14]}  cxb4 {[%clk 0:02:14]} 17. Nxb4 {[%clk 0:02:15]}  Ng4 {[%clk 0:02:01]} 18. Bb2 {[%clk 0:01:59]}  Ne5 {[%clk 0:01:47]} 19. Ba1 {[%clk 0:01:59]}  Rc8 {[%clk 0:01:46]} 20. Rc1 {[%clk 0:01:48]}  Qb6 {[%clk 0:01:41]} 21. e3 {[%clk 0:01:48]}  Rc4 {[%clk 0:01:34]} 22. a3 {[%clk 0:01:48]}  Rfc8 {[%clk 0:01:33]} 23. Re1 {[%clk 0:01:48]}  h5 {[%clk 0:01:28]} 24. h3 {[%clk 0:01:48]}  R4c7 {[%clk 0:01:17]} 25. Qe2 {[%clk 0:01:38]}  Nec4 {[%clk 0:01:14]} 26. Qa2 {[%clk 0:01:38]}  Ra7 {[%clk 0:01:12]} 27. Rc2 {[%clk 0:01:18]}  Bf5 {[%clk 0:01:05]} 28. e4 {[%clk 0:01:15]}  Bd7 {[%clk 0:01:03]} 29. Rec1 {[%clk 0:01:15]}  Nb7 {[%clk 0:00:56]} 30. Nb1 {[%clk 0:01:14]}  Bxa1 {[%clk 0:00:44]} 31. Qxa1 {[%clk 0:01:15]}  Nc5 {[%clk 0:00:44]} 32. Qc3 {[%clk 0:01:08]}  Rca8 {[%clk 0:00:42]} 33. Ra2 {[%clk 0:01:06]}  Ra4 {[%clk 0:00:33]} 34. Kh2 {[%clk 0:01:01]}  Qa5 {[%clk 0:00:19]} 35. Nc6 {[%clk 0:00:53]}  Bxc6 {[%clk 0:00:15]} 36. dxc6 {[%clk 0:00:54]}  Qxc3 {[%clk 0:00:16]} 37. Nxc3 {[%clk 0:00:54]}  Rxa3 {[%clk 0:00:15]} 38. Rxa3 {[%clk 0:00:52]}  Rxa3 {[%clk 0:00:15]} 39. Nxb5 {[%clk 0:00:52]}  Ra4 {[%clk 0:00:16]} 40. e5 {[%clk 0:00:47]}  Ra5 {[%clk 0:00:05]} 41. exd6 {[%clk 0:00:40]}  exd6 {[%clk 0:00:04]} 42. Rxc4 {[%clk 0:00:35]}  Rxb5 {[%clk 0:00:01]} 43. c7 {[%clk 0:00:35]} 1-0


[Site "https://www.chess.com"]

[Event "Titled Tuesday Blitz May 23 Early 2023"]
[White "Sielecki, Christof"]
[Black "Ilamparthi A R"]
[WhiteFideId "4620437"]
[BlackFideId "45015775"]
[WhiteElo "2443"]
[BlackElo "2348"]
[Result "1/2-1/2"]
[Round "10"]
[TimeControl "180+2"]
[Date "2023.05.23"]
[WhiteClock "0:00:06"]
[BlackClock "0:00:15"]

1. e4 {[%clk 0:03:00]}  c5 {[%clk 0:02:57]} 2. Nf3 {[%clk 0:03:00]}  e6 {[%clk 0:02:57]} 3. c3 {[%clk 0:03:00]}  Nf6 {[%clk 0:02:52]} 4. e5 {[%clk 0:03:00]}  Nd5 {[%clk 0:02:52]} 5. g3 {[%clk 0:03:00]}  Nc6 {[%clk 0:02:52]} 6. Bg2 {[%clk 0:03:01]}  d6 {[%clk 0:02:52]} 7. exd6 {[%clk 0:03:01]}  Bxd6 {[%clk 0:02:52]} 8. O-O {[%clk 0:03:02]}  O-O {[%clk 0:02:50]} 9. d4 {[%clk 0:03:03]}  Qe7 {[%clk 0:02:37]} 10. c4 {[%clk 0:02:59]}  Nb6 {[%clk 0:02:35]} 11. d5 {[%clk 0:02:45]}  Na5 {[%clk 0:02:34]} 12. Nc3 {[%clk 0:02:27]}  Naxc4 {[%clk 0:02:28]} 13. Re1 {[%clk 0:02:13]}  Qf6 {[%clk 0:02:17]} 14. Ne4 {[%clk 0:02:05]}  Qd8 {[%clk 0:02:13]} 15. b3 {[%clk 0:01:58]}  exd5 {[%clk 0:02:11]} 16. Nxd6 {[%clk 0:01:42]}  Nxd6 {[%clk 0:02:12]} 17. Ba3 {[%clk 0:01:42]}  Ne4 {[%clk 0:01:59]} 18. Nd2 {[%clk 0:01:42]}  Nxd2 {[%clk 0:01:17]} 19. Qxd2 {[%clk 0:01:43]}  Be6 {[%clk 0:01:16]} 20. Bxc5 {[%clk 0:01:41]}  Re8 {[%clk 0:01:17]} 21. Bd4 {[%clk 0:01:37]}  Rc8 {[%clk 0:01:16]} 22. h4 {[%clk 0:01:35]}  Nd7 {[%clk 0:01:11]} 23. Rac1 {[%clk 0:01:32]}  b6 {[%clk 0:01:07]} 24. Rxc8 {[%clk 0:01:29]}  Qxc8 {[%clk 0:01:07]} 25. Qb2 {[%clk 0:01:23]}  f6 {[%clk 0:01:02]} 26. Rxe6 {[%clk 0:01:13]}  Rxe6 {[%clk 0:01:03]} 27. Bxd5 {[%clk 0:01:14]}  Nf8 {[%clk 0:01:03]} 28. Bxe6+ {[%clk 0:01:12]}  Qxe6 {[%clk 0:01:04]} 29. Be3 {[%clk 0:01:10]}  Kf7 {[%clk 0:01:03]} 30. Qa3 {[%clk 0:01:08]}  Qd7 {[%clk 0:01:02]} 31. Qb4 {[%clk 0:01:02]}  Ng6 {[%clk 0:01:01]} 32. Qc4+ {[%clk 0:00:59]}  Kf8 {[%clk 0:01:01]} 33. Bd4 {[%clk 0:00:55]}  Ne7 {[%clk 0:00:57]} 34. a4 {[%clk 0:00:53]}  Nc6 {[%clk 0:00:44]} 35. Bc3 {[%clk 0:00:51]}  Ne7 {[%clk 0:00:40]} 36. Bb4 {[%clk 0:00:48]}  Ke8 {[%clk 0:00:40]} 37. Bxe7 {[%clk 0:00:46]}  Kxe7 {[%clk 0:00:41]} 38. Qg8 {[%clk 0:00:39]}  Qg4 {[%clk 0:00:35]} 39. Qd5 {[%clk 0:00:34]}  Qe6 {[%clk 0:00:25]} 40. Qb7+ {[%clk 0:00:32]}  Qd7 {[%clk 0:00:25]} 41. Qe4+ {[%clk 0:00:31]}  Kf8 {[%clk 0:00:22]} 42. Qc4 {[%clk 0:00:18]}  Qd6 {[%clk 0:00:18]} 43. Kg2 {[%clk 0:00:17]}  g6 {[%clk 0:00:17]} 44. b4 {[%clk 0:00:14]}  Qd7 {[%clk 0:00:16]} 45. b5 {[%clk 0:00:13]}  Kg7 {[%clk 0:00:16]} 46. Qc6 {[%clk 0:00:09]}  Qe7 {[%clk 0:00:16]} 47. g4 {[%clk 0:00:09]}  Kf7 {[%clk 0:00:15]} 48. Kg3 {[%clk 0:00:08]}  Qe5+ {[%clk 0:00:15]} 49. Kg2 {[%clk 0:00:08]}  Qe6 {[%clk 0:00:15]} 50. Qc7+ {[%clk 0:00:07]}  Qe7 {[%clk 0:00:15]} 51. Qc4+ {[%clk 0:00:07]}  Qe6 {[%clk 0:00:15]} 52. Qc7+ {[%clk 0:00:07]}  Qe7 {[%clk 0:00:16]} 53. Qc4+ {[%clk 0:00:08]}  Kg7 {[%clk 0:00:16]} 54. Qc6 {[%clk 0:00:07]}  Kh6 {[%clk 0:00:15]} 55. Qc1+ {[%clk 0:00:05]}  Kg7 {[%clk 0:00:15]} 56. Qc6 {[%clk 0:00:06]} 1/2-1/2


[Site "https://www.chess.com"]

[Event "Titled Tuesday Blitz May 23 Early 2023"]
[White "Seo, Jung Min"]
[Black "Nikologorskiy, Konstantin"]
[WhiteFideId "1734687"]
[BlackFideId "24111708"]
[WhiteElo "2468"]
[BlackElo "2273"]
[Result "1-0"]
[Round "10"]
[TimeControl "180+2"]
[Date "2023.05.23"]
[WhiteClock "0:00:32"]
[BlackClock "0:00:00"]

1. Nf3 {[%clk 0:03:00]}  d5 {[%clk 0:02:43]} 2. e3 {[%clk 0:02:59]}  Nf6 {[%clk 0:02:43]} 3. c4 {[%clk 0:02:58]}  c6 {[%clk 0:02:41]} 4. d4 {[%clk 0:02:56]}  Bf5 {[%clk 0:02:39]} 5. Nc3 {[%clk 0:02:55]}  e6 {[%clk 0:02:39]} 6. Nh4 {[%clk 0:02:56]}  Bg4 {[%clk 0:02:39]} 7. Qb3 {[%clk 0:02:55]}  Qc8 {[%clk 0:02:32]} 8. h3 {[%clk 0:02:53]}  Bh5 {[%clk 0:02:32]} 9. g4 {[%clk 0:02:53]}  Bg6 {[%clk 0:02:33]} 10. Nxg6 {[%clk 0:02:53]}  hxg6 {[%clk 0:02:34]} 11. Bg2 {[%clk 0:02:53]}  Nbd7 {[%clk 0:02:34]} 12. Bd2 {[%clk 0:02:52]}  Bd6 {[%clk 0:02:30]} 13. O-O-O {[%clk 0:02:49]}  dxc4 {[%clk 0:02:15]} 14. Qxc4 {[%clk 0:02:48]}  c5 {[%clk 0:02:16]} 15. d5 {[%clk 0:02:43]}  Nb6 {[%clk 0:02:16]} 16. Qb5+ {[%clk 0:02:41]}  Qd7 {[%clk 0:02:12]} 17. Qxd7+ {[%clk 0:02:41]}  Kxd7 {[%clk 0:02:09]} 18. dxe6+ {[%clk 0:02:41]}  Kxe6 {[%clk 0:02:10]} 19. Bxb7 {[%clk 0:02:41]}  Rab8 {[%clk 0:02:10]} 20. Ba6 {[%clk 0:02:32]}  g5 {[%clk 0:01:56]} 21. f4 {[%clk 0:02:26]}  c4 {[%clk 0:01:37]} 22. fxg5 {[%clk 0:02:23]}  Nfd7 {[%clk 0:01:38]} 23. Ne4 {[%clk 0:02:17]}  Be5 {[%clk 0:01:21]} 24. Bc3 {[%clk 0:02:01]}  Bxc3 {[%clk 0:01:20]} 25. bxc3 {[%clk 0:02:02]}  Ne5 {[%clk 0:01:17]} 26. Nc5+ {[%clk 0:01:52]}  Ke7 {[%clk 0:01:15]} 27. Kc2 {[%clk 0:01:41]}  Rhd8 {[%clk 0:01:01]} 28. e4 {[%clk 0:01:29]}  Rxd1 {[%clk 0:00:54]} 29. Rxd1 {[%clk 0:01:28]}  Rh8 {[%clk 0:00:54]} 30. a4 {[%clk 0:01:19]}  Rxh3 {[%clk 0:00:52]} 31. a5 {[%clk 0:01:19]}  Nbd7 {[%clk 0:00:39]} 32. Nxd7 {[%clk 0:01:18]}  Nxd7 {[%clk 0:00:40]} 33. Bxc4 {[%clk 0:01:17]}  Nc5 {[%clk 0:00:40]} 34. Rf1 {[%clk 0:01:14]}  Nxe4 {[%clk 0:00:34]} 35. Rxf7+ {[%clk 0:01:09]}  Kd6 {[%clk 0:00:35]} 36. Bd3 {[%clk 0:01:02]}  Nc5 {[%clk 0:00:23]} 37. Bf5 {[%clk 0:01:00]}  Rh2+ {[%clk 0:00:21]} 38. Kd1 {[%clk 0:01:00]}  Nb3 {[%clk 0:00:02]} 39. Rxa7 {[%clk 0:00:55]}  Ke5 {[%clk 0:00:03]} 40. a6 {[%clk 0:00:51]}  Kf4 {[%clk 0:00:01]} 41. Rxg7 {[%clk 0:00:49]}  Rd2+ {[%clk 0:00:01]} 42. Ke1 {[%clk 0:00:48]}  Ra2 {[%clk 0:00:02]} 43. a7 {[%clk 0:00:44]}  Nd2 {[%clk 0:00:02]} 44. Kd1 {[%clk 0:00:41]}  Nb3 {[%clk 0:00:02]} 45. Rb7 {[%clk 0:00:37]}  Nc5 {[%clk 0:00:01]} 46. Rc7 {[%clk 0:00:35]}  Nb3 {[%clk 0:00:00]} 47. Bc2 {[%clk 0:00:32]} 1-0


[Site "https://www.chess.com"]

[Event "Titled Tuesday Blitz May 23 Early 2023"]
[White "Danielyan, Vahe"]
[Black "Starozhilov, Leonid"]
[WhiteFideId "13304828"]
[BlackFideId "14106752"]
[WhiteElo "2423"]
[BlackElo "2352"]
[Result "0-1"]
[Round "10"]
[TimeControl "180+2"]
[Date "2023.05.23"]
[WhiteClock "0:00:00"]
[BlackClock "0:00:08"]

1. d4 {[%clk 0:03:00]}  Nf6 {[%clk 0:02:55]} 2. c4 {[%clk 0:03:00]}  g6 {[%clk 0:02:54]} 3. Nc3 {[%clk 0:03:00]}  Bg7 {[%clk 0:02:53]} 4. e4 {[%clk 0:02:59]}  d6 {[%clk 0:02:53]} 5. Be2 {[%clk 0:02:59]}  O-O {[%clk 0:02:53]} 6. Be3 {[%clk 0:02:59]}  Nc6 {[%clk 0:02:42]} 7. d5 {[%clk 0:02:41]}  Ne5 {[%clk 0:02:42]} 8. h3 {[%clk 0:02:41]}  c6 {[%clk 0:02:37]} 9. f4 {[%clk 0:02:35]}  Ned7 {[%clk 0:02:37]} 10. Nf3 {[%clk 0:02:36]}  cxd5 {[%clk 0:02:37]} 11. cxd5 {[%clk 0:02:36]}  Nc5 {[%clk 0:02:37]} 12. Bxc5 {[%clk 0:02:26]}  dxc5 {[%clk 0:02:38]} 13. e5 {[%clk 0:02:27]}  Nh5 {[%clk 0:02:38]} 14. Qd2 {[%clk 0:02:22]}  Ng3 {[%clk 0:01:58]} 15. O-O-O {[%clk 0:02:22]}  Nxh1 {[%clk 0:01:57]} 16. Rxh1 {[%clk 0:02:22]}  a6 {[%clk 0:01:55]} 17. g4 {[%clk 0:02:17]}  b5 {[%clk 0:01:53]} 18. f5 {[%clk 0:02:10]}  Bb7 {[%clk 0:01:48]} 19. Rd1 {[%clk 0:02:02]}  c4 {[%clk 0:01:42]} 20. Ne4 {[%clk 0:01:57]}  Rc8 {[%clk 0:01:37]} 21. g5 {[%clk 0:01:31]}  gxf5 {[%clk 0:01:27]} 22. Ng3 {[%clk 0:01:30]}  e6 {[%clk 0:01:16]} 23. Qf4 {[%clk 0:01:12]}  c3 {[%clk 0:01:09]} 24. b4 {[%clk 0:01:06]}  c2 {[%clk 0:00:40]} 25. Rd4 {[%clk 0:01:00]}  Qc7 {[%clk 0:00:31]} 26. Bc4 {[%clk 0:00:36]}  Qxc4 {[%clk 0:00:17]} 27. Rxc4 {[%clk 0:00:33]}  Rxc4 {[%clk 0:00:17]} 28. Qd2 {[%clk 0:00:30]}  Bxd5 {[%clk 0:00:17]} 29. Nxf5 {[%clk 0:00:08]}  Bxf3 {[%clk 0:00:12]} 30. Nh6+ {[%clk 0:00:05]}  Kh8 {[%clk 0:00:12]} 31. Qf2 {[%clk 0:00:04]}  Bxe5 {[%clk 0:00:08]} 32. Qe3 {[%clk 0:00:02]}  Bb2+ {[%clk 0:00:07]} 33. Kxb2 {[%clk 0:00:03]}  c1=Q+ {[%clk 0:00:08]} 34. Qxc1 {[%clk 0:00:03]}  Rxc1 {[%clk 0:00:08]} 35. Kxc1 {[%clk 0:00:04]}  Bh5 {[%clk 0:00:08]} 36. a4 {[%clk 0:00:03]}  Kg7 {[%clk 0:00:08]} 37. a5 {[%clk 0:00:03]}  Kg6 {[%clk 0:00:08]} 38. h4 {[%clk 0:00:04]}  f6 {[%clk 0:00:08]} 39. Ng4 {[%clk 0:00:00]}  Bxg4 {[%clk 0:00:08]} 0-1


[Site "https://www.chess.com"]